bitfinex-derivatives/quotes_BTCF0:USTF0_20241021
["timestamp","ask_amount","ask_price","bid_price","bid_amount"]
[1729523104677,0.3608,67121.0,67114.0,0.003]
[1729523104873,0.074525,67115.0,67114.0,0.003]
[1729523105173,0.3608,67132.0,67115.0,0.00195931]
[1729523105469,0.3608,67125.0,67114.0,0.003]
[1729523105772,0.074522,67118.0,67114.0,0.003]
[1729523105965,0.3608,67119.0,67114.0,0.003]
[1729523106173,0.074525,67115.0,67114.0,0.003]
[1729523106476,0.074539,67102.0,67095.0,0.074546]
[1729523106769,1.0506,67118.0,67094.0,0.00495674]
[1729523106770,0.3608,67106.0,67094.0,0.00495674]
[1729523106969,0.074537,67104.0,67094.0,0.00495674]
[1729523107170,0.074537,67104.0,67096.0,0.074545]
[1729523107372,0.074539,67103.0,67095.0,0.00606721]
[1729523107568,0.074539,67103.0,67096.0,0.074546]
[1729523107972,0.074555,67088.0,67072.0,0.3608]
[1729523108271,0.3608,67097.0,67078.0,0.3608]
[1729523108272,0.07455,67092.0,67078.0,0.3608]
[1729523108473,0.3608,67097.0,67078.0,0.3608]
[1729523108677,0.435352,67091.0,67082.0,0.07456]
[1729523108973,0.435352,67091.0,67078.0,0.3608]
[1729523108974,0.074548,67094.0,67084.0,0.074558]
[1729523109170,0.074548,67094.0,67078.0,0.3608]
[1729523109369,0.3608,67097.0,67086.0,0.3608]
[1729523109571,0.3608,67097.0,67091.0,0.07455]
[1729523109770,0.3608,67097.0,67096.0,0.001]
[1729523110477,0.3658,67097.0,67091.0,0.07455]
[1729523110774,0.3658,67097.0,67089.0,0.074553]
[1729523110975,0.435345,67097.0,67096.0,0.001]
[1729523111176,0.445345,67097.0,67096.0,0.002]
[1729523112068,0.892465,67097.0,67096.0,0.002]
[1729523112670,0.435345,67097.0,67096.0,0.001]
[1729523112862,0.440345,67097.0,67090.0,0.074552]
[1729523113068,0.3658,67097.0,67086.0,0.074556]
[1729523113269,0.3658,67097.0,67078.0,0.45249309]
[1729523113471,0.3748,67097.0,67096.0,0.001]
[1729523113674,0.449346,67097.0,67096.0,0.001]
[1729523113872,0.896466,67097.0,67096.0,0.002]
[1729523114179,0.887466,67097.0,67096.0,0.001]
[1729523114678,0.887466,67097.0,67078.0,0.37792809]
[1729523114679,0.074549,67094.0,67078.0,0.37792809]
[1729523114880,0.074556,67087.0,67080.0,0.074563]
[1729523115082,0.074554,67089.0,67079.0,0.08318591]
[1729523115270,0.074558,67085.0,67078.0,0.45249309]
[1729523115583,0.074557,67087.0,67078.0,0.435366]
[1729523115780,0.3608,67090.0,67078.0,0.3608]
[1729523115967,0.3608,67090.0,67081.0,0.074562]
[1729523116292,0.3608,67090.0,67078.0,0.3608]
[1729523116480,0.074559,67085.0,67078.0,0.436366]
[1729523116782,0.37818661,67090.0,67078.0,0.3618]
[1729523116981,0.074559,67085.0,67078.0,0.3618]
[1729523117185,0.37818661,67090.0,67078.0,0.3618]
[1729523117487,0.074561,67082.0,67078.0,0.3608]
[1729523117990,0.3608,67084.0,67078.0,0.074565]
[1729523118188,0.43536,67084.0,67078.0,0.074565]
[1729523118683,0.3608,67084.0,67074.0,0.3608]
[1729523118871,0.3608,67084.0,67075.0,0.074569]
[1729523119067,0.3608,67084.0,67080.0,0.074563]
[1729523119280,0.3608,67084.0,67077.0,0.074566]
[1729523119468,0.07456,67083.0,67078.0,0.074565]
[1729523119783,0.3608,67086.0,67078.0,0.074565]
[1729523119986,0.435365,67079.0,67068.0,0.0176261]
[1729523120288,0.3608,67069.0,67055.0,0.01726948]
[1729523120474,0.07459,67056.0,67055.0,0.01726948]
[1729523121075,0.435386,67060.0,67055.0,0.01726948]
[1729523121380,0.3608,67060.0,67052.0,0.074594]
[1729523121772,0.3608,67060.0,67055.0,0.004]
[1729523122090,0.074587,67059.0,67055.0,0.004]
[1729523122268,0.074588,67058.0,67055.0,0.004]
[1729523122473,0.07459,67056.0,67055.0,0.004]
[1729523122684,0.3608,67060.0,67055.0,0.004]
[1729523122886,0.1308,67068.0,67055.0,0.004]
[1729523123085,0.074575,67070.0,67060.0,0.074585]
[1729523123286,0.074575,67070.0,67061.0,0.074584]
[1729523123604,0.074578,67067.0,67058.0,0.1273]
[1729523123882,0.074579,67067.0,67058.0,0.1273]
[1729523124187,0.37815205,67073.0,67061.0,0.074585]
[1729523124372,0.074577,67069.0,67061.0,0.074585]
[1729523124579,0.074578,67068.0,67061.0,0.074585]
[1729523124885,0.074578,67068.0,67058.0,0.1273]
[1729523124886,0.0016,67076.0,67067.0,0.074578]
[1729523125085,0.3608,67084.0,67065.0,0.3608]
[1729523125086,0.4907,67084.0,67065.0,0.3608]
[1729523125382,0.074569,67075.0,67066.0,0.074578]
[1729523125594,0.3608,67072.0,67062.0,0.074583]
[1729523125774,0.3608,67072.0,67062.0,0.074582]
[1729523125975,0.074578,67068.0,67059.0,0.13096]
[1729523126175,0.3608,67072.0,67059.0,0.1302]
[1729523126682,0.3608,67072.0,67060.0,0.01395628]
[1729523126877,0.3608,67072.0,67059.0,0.1302]
[1729523127077,0.07458,67066.0,67059.0,0.1302]
[1729523127277,0.3608,67072.0,67059.0,0.074586]
[1729523127586,0.001,67068.0,67057.0,0.3608]
[1729523127782,0.074585,67061.0,67057.0,0.3608]
[1729523127975,0.074581,67065.0,67057.0,0.3608]
[1729523128181,0.3608,67066.0,67059.0,0.001]
[1729523128385,0.435386,67060.0,67059.0,0.001]
[1729523129681,0.435386,67060.0,67050.0,0.1307]
[1729523129988,0.074588,67058.0,67057.0,0.005]
[1729523130175,0.3608,67060.0,67057.0,0.005]
[1729523130488,0.435386,67060.0,67059.0,0.001]
[1729523130684,0.3608,67060.0,67059.0,0.001]
[1729523130884,0.3608,67060.0,67056.0,0.07459]
[1729523131087,0.3618,67060.0,67052.0,0.074595]
[1729523131385,0.3618,67060.0,67051.0,0.3608]
[1729523131386,0.001,67060.0,67051.0,0.3608]
[1729523131588,0.001,67060.0,67057.0,0.002]
[1729523131791,0.00168,67065.0,67059.0,0.074587]
[1729523131978,0.3608,67073.0,67059.0,0.001]
[1729523132180,0.074574,67071.0,67059.0,0.001]
[1729523132377,0.074573,67072.0,67065.0,0.074579]
[1729523132584,0.074573,67072.0,67060.0,0.074585]
[1729523132888,0.3608,67073.0,67063.0,0.074582]
[1729523133082,0.074575,67070.0,67059.0,0.001]
[1729523133282,0.3608,67073.0,67059.0,0.001]
[1729523133283,0.074574,67071.0,67059.0,0.001]
[1729523133490,0.435372,67073.0,67064.0,0.074581]
[1729523133688,0.3608,67073.0,67059.0,0.001]
[1729523133984,0.3608,67073.0,67058.0,0.3608]
[1729523133985,0.074576,67069.0,67061.0,0.074584]
[1729523134187,0.074576,67069.0,67063.0,0.074582]
[1729523134594,0.074576,67069.0,67058.0,0.37851021]
[1729523134595,0.324572,67072.0,67066.0,0.074578]
[1729523134982,0.324572,67072.0,67058.0,0.37851021]
[1729523134983,0.25,67072.0,67058.0,0.37851021]
[1729523135299,0.25,67072.0,67070.0,0.074574]
[1729523135793,0.25,67072.0,67066.0,0.2746]
[1729523136188,0.25,67072.0,67071.0,0.074573]
[1729523136593,0.25,67072.0,67071.0,0.44755074]
[1729523137279,0.256,67072.0,67071.0,0.44755074]
[1729523137684,0.25,67072.0,67071.0,0.44755074]
[1729523137898,0.26,67072.0,67071.0,0.44855074]
[1729523138095,0.3608,67103.0,67071.0,1.42225774]
[1729523138290,0.074546,67096.0,67089.0,0.074553]
[1729523138486,0.0178565,67102.0,67083.0,0.00764313]
[1729523138687,0.074551,67092.0,67088.0,0.074554]
[1729523138985,0.074546,67096.0,67085.0,0.00762521]
[1729523139184,0.0178565,67102.0,67091.0,0.3608]
[1729523139394,2.75,67097.0,67096.0,0.074546]
[1729523139981,2.75,67097.0,67096.0,0.5282885]
[1729523140590,2.75,67097.0,67096.0,0.5292885]
[1729523140897,2.75,67097.0,67096.0,1.1292885]
[1729523141086,1.11837128,67097.0,67096.0,1.1292885]
[1729523141401,2.50168,67121.0,67120.0,0.074519]
[1729523141585,2.5,67121.0,67120.0,0.435319]
[1729523142192,2.574518,67121.0,67120.0,0.36209338]
[1729523142589,2.574518,67121.0,67120.0,0.3608]
[1729523142797,0.05996768,67080.0,67071.0,0.247]
[1729523143099,0.074528,67113.0,67071.0,0.247]
[1729523143100,0.074531,67109.0,67107.0,0.00022201]
[1729523143300,0.3608,67110.0,67109.0,0.074531]
[1729523143905,0.3608,67110.0,67109.0,0.521571]
[1729523144198,0.3638,67121.0,67120.0,0.074519]
[1729523144802,0.3608,67121.0,67120.0,0.52277238]
[1729523145003,0.3688,67131.0,67120.0,0.52277238]
[1729523145004,0.3688,67131.0,67130.0,0.074508]
[1729523145202,0.3608,67137.0,67130.0,0.074508]
[1729523145394,0.4353,67137.0,67136.0,0.074501]
[1729523145700,0.074505,67133.0,67132.0,0.074505]
[1729523146311,0.074503,67135.0,67122.0,0.074516]
[1729523146508,0.074503,67135.0,67123.0,0.074515]
[1729523146702,0.074503,67135.0,67133.0,0.074505]
[1729523147211,0.3608,67137.0,67133.0,0.074505]
[1729523147393,0.074503,67134.0,67133.0,0.074505]
[1729523147589,0.074505,67133.0,67132.0,0.001]
[1729523147790,0.435305,67133.0,67130.0,0.001]
[1729523148006,0.263,67132.0,67110.0,0.2172]
[1729523148305,0.074522,67117.0,67116.0,0.0022345]
[1729523149203,0.074528,67112.0,67108.0,0.3608]
[1729523149508,0.074535,67106.0,67104.0,0.074536]
[1729523149892,0.074535,67106.0,67105.0,0.00044409]
[1729523150092,0.074529,67111.0,67105.0,0.00044409]
[1729523150303,0.435326,67115.0,67114.0,0.074526]
[1729523150805,0.3608,67115.0,67114.0,0.074526]
[1729523150995,0.3608,67115.0,67114.0,0.0771513]
[1729523151197,0.3608,67115.0,67114.0,0.0026253]
[1729523151502,0.074528,67112.0,67111.0,0.074528]
[1729523151703,0.3608,67115.0,67104.0,0.001]
[1729523151903,0.074529,67112.0,67108.0,0.074532]
[1729523152206,0.435325,67115.0,67114.0,0.002]
[1729523152402,0.435325,67115.0,67093.0,0.291709]
[1729523152403,0.7216,67115.0,67101.0,0.074539]
[1729523152703,0.074535,67107.0,67104.0,0.00406848]
[1729523152907,0.074535,67107.0,67106.0,0.074535]
[1729523153817,0.074535,67106.0,67105.0,0.074536]
[1729523154007,0.3608,67109.0,67101.0,0.002]
[1729523154307,0.1331,67108.0,67099.0,0.074542]
[1729523154507,0.074543,67099.0,67097.0,0.074544]
[1729523154808,0.074543,67099.0,67098.0,0.074543]
[1729523155807,0.3608,67102.0,67101.0,0.07454]
[1729523156006,0.3608,67102.0,67101.0,0.07554]
[1729523156601,0.074534,67107.0,67106.0,0.074532]
[1729523156815,0.07453,67110.0,67108.0,0.074532]
[1729523157111,0.435331,67109.0,67108.0,0.074532]
[1729523157313,0.3608,67109.0,67108.0,0.068532]
[1729523157611,0.3593,67109.0,67108.0,0.07248946]
[1729523158012,0.3653,67109.0,67108.0,0.07348946]
[1729523158613,0.006,67109.0,67108.0,0.88132946]
[1729523159099,0.1297,67122.0,67121.0,0.074518]
[1729523159502,0.3608,67123.0,67122.0,0.074517]
[1729523160313,0.3608,67123.0,67122.0,0.07481153]
[1729523160521,0.435316,67123.0,67122.0,0.00029453]
[1729523160814,0.435316,67123.0,67122.0,0.074517]
[1729523160815,0.3628,67123.0,67122.0,0.074517]
[1729523161009,0.3628,67123.0,67122.0,0.52232645]
[1729523161205,0.3628,67123.0,67122.0,0.52977437]
[1729523161405,0.002,67123.0,67122.0,0.52977437]
[1729523161607,0.006,67123.0,67122.0,0.52977437]
[1729523161807,0.006,67123.0,67122.0,0.07536645]
[1729523162010,0.078516,67123.0,67122.0,0.074517]
[1729523162204,0.080516,67123.0,67122.0,0.074517]
[1729523163010,0.078516,67123.0,67122.0,0.074517]
[1729523163310,0.080516,67123.0,67122.0,0.074517]
[1729523163512,0.006,67123.0,67122.0,0.074517]
[1729523164414,0.074519,67121.0,67114.0,0.56876]
[1729523164822,0.3608,67120.0,67119.0,0.07452]
[1729523165116,0.435319,67120.0,67119.0,0.07452]
[1729523165721,0.074529,67113.0,67112.0,0.074528]
[1729523166022,0.3608,67120.0,67098.0,0.00084]
[1729523166023,0.074542,67099.0,67098.0,0.00084]
[1729523166322,0.074542,67099.0,67080.0,0.3608]
[1729523166323,0.074552,67091.0,67080.0,0.3608]
[1729523166620,0.074561,67083.0,67082.0,0.074561]
[1729523167816,0.3608,67087.0,67086.0,0.074557]
[1729523168019,0.074552,67091.0,67090.0,0.074552]
[1729523168217,0.3608,67099.0,67087.0,0.3608]
[1729523168522,0.3608,67109.0,67108.0,0.074532]
[1729523168818,0.36268001,67109.0,67108.0,0.074532]
[1729523169021,0.43721101,67109.0,67108.0,0.074532]
[1729523169229,0.435331,67109.0,67108.0,0.074532]
[1729523169613,0.001,67083.0,67082.0,0.011]
[1729523169814,0.074578,67068.0,67067.0,0.074578]
[1729523170018,0.074578,67067.0,67056.0,0.07459]
[1729523170921,0.074578,67067.0,67049.0,0.0171326]
[1729523171121,0.074578,67067.0,67066.0,0.01323628]
[1729523171811,0.001,67067.0,67066.0,0.01423628]
[1729523172524,0.075578,67067.0,67066.0,0.01423628]
[1729523172822,0.001,67067.0,67051.0,0.074595]
[1729523173125,0.001,67067.0,67041.0,0.3608]
[1729523173126,0.3608,67059.0,67056.0,0.01451217]
[1729523173419,0.001,67067.0,67045.0,0.08219375]
[1729523173615,0.074581,67065.0,67060.0,0.074585]
[1729523173814,0.074582,67064.0,67057.0,0.01462336]
[1729523174019,0.074579,67066.0,67060.0,0.074585]
[1729523174211,0.074585,67061.0,67060.0,0.074585]
[1729523174408,0.074585,67061.0,67058.0,0.01306664]
[1729523174409,0.001,67067.0,67058.0,0.01306664]
[1729523174727,0.074604,67044.0,67041.0,0.00084]
[1729523174923,0.3608,67045.0,67033.0,0.3682581]
[1729523175222,0.074605,67043.0,67039.0,0.074609]
[1729523175616,0.074605,67043.0,67033.0,0.3682581]
[1729523175617,0.074605,67043.0,67040.0,0.074608]
[1729523175822,0.074605,67043.0,67033.0,0.3682581]
[1729523176522,0.074605,67043.0,67041.0,0.074607]
[1729523176727,0.075605,67043.0,67041.0,0.074607]
[1729523176933,0.076605,67043.0,67041.0,0.074607]
[1729523177624,0.074615,67034.0,67033.0,0.3608]
[1729523177826,0.3608,67039.0,67033.0,0.435416]
[1729523178016,0.074607,67041.0,67038.0,0.074609]
[1729523178212,0.074609,67040.0,67038.0,0.074609]
[1729523178413,0.002,67043.0,67029.0,0.3608]
[1729523178610,0.002,67043.0,67019.0,0.0170993]
[1729523178611,0.074619,67030.0,67019.0,0.0170993]
[1729523178813,0.3608,67034.0,67023.0,0.00811936]
[1729523178814,0.436415,67034.0,67023.0,0.00811936]
[1729523179017,0.436415,67034.0,67033.0,0.074616]
[1729523179018,0.001,67034.0,67033.0,0.074616]
[1729523179425,0.001,67034.0,67027.0,0.3608]
[1729523179426,0.074613,67036.0,67035.0,0.074614]
[1729523179628,0.074613,67036.0,67023.0,0.074627]
[1729523179629,0.074625,67026.0,67023.0,0.074627]
[1729523179927,0.3608,67024.0,67023.0,0.074627]
[1729523180229,0.435426,67024.0,67023.0,0.074627]
[1729523180619,0.435419,67030.0,67029.0,0.07462]
[1729523181019,0.3608,67030.0,67029.0,0.07462]
[1729523181229,0.3608,67030.0,67029.0,0.08007321]
[1729523181546,0.074616,67033.0,67032.0,0.074616]
[1729523181831,0.3608,67035.0,67021.0,0.00223819]
[1729523182020,0.3608,67022.0,67021.0,0.00223819]
[1729523182215,0.435428,67022.0,67021.0,0.07686719]
[1729523182421,0.3608,67022.0,67021.0,0.07809152]
[1729523182924,0.435428,67022.0,67021.0,0.07809152]
[1729523183230,0.3608,67022.0,67021.0,0.07809152]
[1729523183617,0.3608,67029.0,67021.0,0.00346252]
[1729523183937,0.3608,67029.0,67028.0,0.074621]
[1729523184332,0.3608,67060.0,67029.0,0.44756]
[1729523184629,0.3608,67063.0,67054.0,0.3608]
[1729523184817,0.2605,67065.0,67054.0,0.3608]
[1729523185227,0.3608,67070.0,67069.0,0.074576]
[1729523185434,0.07455,67093.0,67069.0,0.19948]
[1729523185435,0.3608,67085.0,67069.0,0.19948]
[1729523185632,0.435358,67085.0,67079.0,0.074564]
[1729523185817,0.435358,67085.0,67077.0,0.3608]
[1729523185818,0.074561,67082.0,67077.0,0.3608]
[1729523186017,0.074561,67082.0,67074.0,0.07457]
[1729523186229,0.3608,67085.0,67074.0,0.3608]
[1729523186519,0.3608,67085.0,67078.0,0.074565]
[1729523186719,0.3608,67085.0,67079.0,0.074564]
[1729523187119,0.3608,67085.0,67082.0,0.074561]
[1729523187333,0.3608,67085.0,67077.0,0.074566]
[1729523187534,0.3608,67085.0,67081.0,0.074561]
[1729523187832,0.3608,67093.0,67082.0,0.3608]
[1729523188024,0.435349,67093.0,67085.0,0.074558]
[1729523188225,0.3608,67093.0,67087.0,0.074555]
[1729523188419,0.435349,67093.0,67087.0,0.074555]
[1729523188626,0.3608,67093.0,67088.0,0.074554]
[1729523188820,0.3608,67093.0,67082.0,0.3608]
[1729523189027,0.3608,67087.0,67074.0,0.3608]
[1729523189239,0.435356,67087.0,67078.0,0.074566]
[1729523189439,0.074554,67089.0,67081.0,0.074562]
[1729523189621,0.074554,67089.0,67076.0,0.074567]
[1729523189822,0.074554,67089.0,67080.0,0.074563]
[1729523190029,0.3698,67093.0,67076.0,0.074567]
[1729523190235,0.074557,67087.0,67080.0,0.074563]
[1729523190438,0.3698,67093.0,67075.0,0.19092]
[1729523190636,0.074554,67089.0,67081.0,0.074561]
[1729523190957,0.074558,67085.0,67075.0,0.19092]
[1729523191140,0.074558,67085.0,67079.0,0.074563]
[1729523191556,0.074569,67075.0,67074.0,0.3608]
[1729523191750,0.3608,67080.0,67060.0,0.3608]
[1729523191751,0.074578,67067.0,67060.0,0.3608]
[1729523191947,0.074578,67067.0,67061.0,0.074584]
[1729523192345,0.3608,67072.0,67060.0,0.3608]
[1729523192346,0.2631,67071.0,67060.0,0.3608]
[1729523192653,0.2631,67071.0,67070.0,0.074575]
[1729523192851,0.2631,67071.0,67066.0,0.3608]
[1729523193052,0.2631,67071.0,67070.0,0.074575]
[1729523193358,0.1363,67071.0,67070.0,0.074575]
[1729523193654,0.1363,67084.0,67083.0,0.07456]
[1729523193855,0.1363,67084.0,67082.0,0.074561]
[1729523194059,0.1363,67084.0,67078.0,0.3608]
[1729523194256,0.1363,67084.0,67080.0,0.074563]
[1729523194560,0.210859,67084.0,67080.0,0.074563]
[1729523195058,0.074566,67079.0,67073.0,0.074571]
[1729523195446,0.074566,67079.0,67074.0,0.07457]
[1729523195667,0.074566,67078.0,67074.0,0.07457]
[1729523196052,0.074566,67078.0,67069.0,0.3608]
[1729523196354,0.074566,67078.0,67075.0,0.074568]
[1729523197148,0.082565,67079.0,67076.0,0.074568]
[1729523197353,0.082565,67079.0,67069.0,0.3608]
[1729523197354,0.082565,67079.0,67077.0,0.074566]
[1729523197554,0.082565,67079.0,67078.0,0.074566]
[1729523197555,0.008,67079.0,67078.0,0.074566]
[1729523197760,0.005,67079.0,67078.0,0.074566]
[1729523197962,0.005,67079.0,67075.0,0.3608]
[1729523198148,0.1363,67084.0,67075.0,0.3608]
[1729523198347,0.002,67078.0,67075.0,0.3608]
[1729523198551,0.002,67078.0,67076.0,0.074568]
[1729523198754,0.002,67078.0,67075.0,0.3608]
[1729523199057,0.3608,67077.0,67065.0,0.00223627]
[1729523199357,0.3608,67069.0,67053.0,0.3608]
[1729523199565,0.3608,67069.0,67044.0,0.3608]
[1729523199566,0.074588,67059.0,67047.0,0.074599]
[1729523199753,0.1462,67058.0,67047.0,0.074599]
[1729523200061,0.1462,67058.0,67044.0,0.3608]
[1729523200359,0.1462,67058.0,67037.0,0.2000641]
[1729523200360,0.1475,67068.0,67057.0,0.3608]
[1729523200564,0.1498,67077.0,67066.0,0.3608]
[1729523200751,0.1498,67077.0,67074.0,0.07457]
[1729523200952,0.1498,67077.0,67076.0,0.074568]
[1729523201355,0.001,67077.0,67076.0,0.074568]
[1729523202052,0.3608,67083.0,67076.0,0.074568]
[1729523202359,0.3608,67083.0,67066.0,0.3608]
[1729523202560,0.1367,67082.0,67077.0,0.074566]
[1729523202756,0.1367,67082.0,67078.0,0.074565]
[1729523202960,0.1367,67082.0,67073.0,0.3608]
[1729523203162,0.1367,67082.0,67079.0,0.074564]
[1729523203460,0.1367,67082.0,67081.0,0.074562]
[1729523203767,0.1367,67082.0,67073.0,0.3608]
[1729523203962,0.1367,67082.0,67078.0,0.074565]
[1729523204151,0.1367,67082.0,67073.0,0.3608]
[1729523204354,0.1367,67082.0,67073.0,0.3528]
[1729523204555,0.1477,67082.0,67081.0,0.074562]
[1729523205157,0.1367,67082.0,67081.0,0.074562]
[1729523205357,0.1377,67082.0,67081.0,0.074562]
[1729523205856,0.1477,67082.0,67081.0,0.074562]
[1729523206064,0.1477,67082.0,67068.0,0.3608]
[1729523206065,0.1477,67082.0,67068.0,0.435376]
[1729523206361,0.1447,67082.0,67078.0,0.074565]
[1729523206566,0.1447,67082.0,67080.0,0.074563]
[1729523206766,0.1437,67082.0,67081.0,0.074562]
[1729523206962,0.1507,67082.0,67076.0,0.3608]
[1729523207154,0.1507,67082.0,67081.0,0.074562]
[1729523207353,0.1507,67082.0,67077.0,0.074566]
[1729523207659,0.1507,67082.0,67068.0,0.3608]
[1729523207660,0.1527,67082.0,67073.0,0.07457]
[1729523207860,0.220262,67082.0,67070.0,0.074574]
[1729523208073,0.3608,67077.0,67068.0,0.3608]
[1729523209263,0.217261,67082.0,67071.0,0.074573]
[1729523209469,0.1427,67082.0,67068.0,0.3618]
[1729523209666,0.1427,67082.0,67081.0,0.074562]
[1729523210167,0.1367,67082.0,67081.0,0.074562]
[1729523210359,0.1367,67082.0,67068.0,0.001]
[1729523210360,0.62042815,67082.0,67068.0,0.001]
[1729523210566,0.03652815,67081.0,67075.0,0.074568]
[1729523210969,0.03652815,67081.0,67071.0,0.3608]
[1729523211168,0.03652815,67081.0,67076.0,0.074567]
[1729523211368,0.03652815,67081.0,67071.0,0.3608]
[1729523211768,0.1367,67082.0,67081.0,0.074562]
[1729523211972,0.1488,67086.0,67085.0,0.074558]
[1729523212170,0.1488,67086.0,67085.0,0.435358]
[1729523213469,0.1488,67086.0,67085.0,0.074558]
[1729523213767,0.18532246,67086.0,67085.0,0.074558]
[1729523214271,0.1628,67086.0,67085.0,0.074558]
[1729523214871,0.1488,67086.0,67085.0,0.074558]
[1729523215065,0.1488,67086.0,67081.0,0.074562]
[1729523215066,0.1578,67086.0,67081.0,0.074562]
[1729523215268,0.3608,67083.0,67071.0,0.3608]
[1729523215667,0.1402,67085.0,67081.0,0.3608]
[1729523216070,0.1402,67085.0,67082.0,0.074561]
[1729523216464,0.501,67085.0,67071.0,0.3608]
[1729523216666,0.501,67085.0,67072.0,0.074572]
[1729523216869,0.501,67085.0,67078.0,0.074565]
[1729523217279,0.03652709,67084.0,67078.0,0.074565]
[1729523217476,0.1482,67085.0,67078.0,0.074565]
[1729523217678,0.1482,67085.0,67077.0,0.3608]
[1729523217979,0.001,67083.0,67080.0,0.074563]
[1729523218179,0.001,67083.0,67077.0,0.3608]
[1729523218479,0.03652644,67082.0,67077.0,0.435367]
[1729523218676,0.03652644,67081.0,67077.0,0.435367]
[1729523218877,0.50792001,67085.0,67077.0,0.435367]
[1729523219065,0.0385277,67084.0,67077.0,0.3608]
[1729523219376,0.0385277,67084.0,67079.0,0.074564]
[1729523219377,0.0365277,67083.0,67079.0,0.074564]
[1729523219679,0.3608,67083.0,67070.0,0.3528]
[1729523219874,0.3608,67083.0,67075.0,0.074568]
[1729523220580,0.074567,67077.0,67070.0,0.3528]
[1729523220768,0.074567,67077.0,67053.0,0.17496]
[1729523220769,0.3608,67073.0,67063.0,0.3608]
[1729523221083,0.03653404,67072.0,67056.0,0.074589]
[1729523221377,0.074582,67064.0,67049.0,0.3608]
[1729523221579,0.074582,67064.0,67051.0,0.074595]
[1729523221580,0.36513545,67063.0,67051.0,0.074595]
[1729523221778,0.36513545,67063.0,67055.0,0.074591]
[1729523221779,0.08234058,67062.0,67055.0,0.074591]
[1729523222083,0.08234045,67061.0,67055.0,0.074591]
[1729523222274,0.03653977,67060.0,67059.0,0.074587]
[1729523222972,0.1367,67063.0,67055.0,0.3608]
[1729523223169,0.03653404,67072.0,67064.0,0.074581]
[1729523223370,0.001,67062.0,67061.0,0.435384]
[1729523223566,0.03753618,67062.0,67061.0,0.074584]
[1729523223770,0.03753695,67062.0,67061.0,0.074584]
[1729523224070,0.03753695,67062.0,67055.0,0.001]
[1729523224272,0.3608,67058.0,67043.0,0.3608]
[1729523224478,0.03653921,67057.0,67051.0,0.074595]
[1729523224779,0.03653921,67057.0,67055.0,0.07459]
[1729523224974,0.001,67060.0,67059.0,0.001]
[1729523225178,0.001,67060.0,67035.0,0.3608]
[1729523225179,0.39834195,67060.0,67035.0,0.3608]
[1729523225480,0.3608,67050.0,67043.0,0.001]
[1729523225691,0.18144615,67049.0,67045.0,0.074602]
[1729523225870,0.03654615,67048.0,67045.0,0.074602]
[1729523226069,0.03654615,67047.0,67045.0,0.074602]
[1729523226271,0.03654615,67046.0,67041.0,0.07684438]
[1729523226484,0.03654615,67045.0,67041.0,0.00223738]
[1729523226681,0.03654615,67045.0,67035.0,0.3608]
[1729523226682,0.1449,67049.0,67035.0,0.3608]
[1729523226985,0.1449,67049.0,67022.0,0.3608]
[1729523226986,0.3608,67041.0,67022.0,0.3608]
[1729523227285,0.3608,67041.0,67026.0,0.074623]
[1729523227286,0.3608,67035.0,67026.0,0.074623]
[1729523227576,0.3608,67035.0,67022.0,0.36502917]
[1729523227577,0.3608,67035.0,67028.0,0.074621]
[1729523227783,0.3608,67035.0,67024.0,0.074625]
[1729523227784,0.3608,67029.0,67024.0,0.074625]
[1729523227972,0.3608,67029.0,67018.0,0.0171006]
[1729523227973,0.3608,67025.0,67000.0,0.06]
[1729523228182,0.3608,67006.0,67000.0,0.06]
[1729523228488,0.3608,67006.0,66988.0,0.3608]
[1729523228489,0.1565,67005.0,66986.0,0.3608]
[1729523228777,0.3608,67000.0,66986.0,0.3608]
[1729523228985,0.3608,66993.0,66978.0,0.0139157]
[1729523229186,0.3608,66993.0,66977.0,0.3608]
[1729523229482,0.3608,66993.0,66984.0,0.3608]
[1729523230177,0.1514,66999.0,66984.0,0.3608]
[1729523230580,0.074657,66996.0,66984.0,0.3608]
[1729523231184,0.1514,66999.0,66984.0,0.3608]
[1729523231572,0.1514,66999.0,66985.0,0.01424994]
[1729523231778,0.1514,66999.0,66984.0,0.3608]
[1729523231982,0.001,66996.0,66984.0,0.3608]
[1729523232174,0.001,66993.0,66984.0,0.3608]
[1729523232483,0.001,66993.0,66985.0,0.074668]
[1729523232670,0.001,66996.0,66985.0,0.074668]
[1729523232870,0.1524,66999.0,66992.0,0.3608]
[1729523232871,0.002,66999.0,66992.0,0.3608]
[1729523233373,0.002,66999.0,66998.0,0.435455]
[1729523233774,0.01724519,67017.0,67006.0,0.074645]
[1729523233989,0.3608,67018.0,67011.0,0.3608]
[1729523234283,0.074625,67025.0,67011.0,0.43544]
[1729523234284,0.3608,67025.0,67011.0,0.43544]
[1729523234484,0.3608,67025.0,67012.0,0.00879252]
[1729523234679,0.074627,67023.0,67012.0,0.00879252]
[1729523234877,0.3608,67025.0,67009.0,0.074642]
[1729523235184,0.002,67017.0,67005.0,0.3608]
[1729523235487,0.002,67017.0,67006.0,0.00868119]
[1729523235682,0.435432,67019.0,67006.0,0.00068119]
[1729523235887,0.3608,67019.0,67006.0,0.00068119]
[1729523236083,0.3608,67019.0,67013.0,0.3608]
[1729523236702,0.008,67025.0,67014.0,0.00045852]
[1729523236895,0.008,67025.0,67023.0,0.074627]
[1729523237192,0.074615,67035.0,67023.0,0.074627]